Cogmind - Beta 15 @@@ ROGUE MODE // 2025.10.13 @ 16:03:06 Player: weedlord420 Result: Self-destructed Performance ------------- Evolutions (3) 1500 Regions Visited (6) 1200 Robots Destroyed (106) 530 Value Destroyed (2277) 2277 Prototype IDs (7) 140 Alien Tech Used (0) 0 Bonus (138) 138 TOTAL SCORE: 5785 Bonus ------- Follower Combat Kills 175 Friendly Fire -37 Cogmind --------- Core Integrity 497/700 Matter 88/300 Energy 280/280 System Corruption 12% Temperature Cool (0) Movement Rolling (145) Ox3 Location -7/Factory Parts ------- > --- POWER (1) -------- Cooled Ion Engine > --- PROPULSION (4) --- Compact Wheel > --- UTILITY (6) ------ Large Storage Unit Improved Signal Interpreter Advanced Terrain Scan Processor Improved Medium Armor Plating Reactive Plating Hacking Suite > --- WEAPON (2) ------- High-powered Shotgun Power Maul > --- INVENTORY (15) --- Improved Ion Engine Experimental Sensor Array Improved Terrain Scanner Reactive Plating System Shield Corruption Screen Improved EM Shotgun Improved EM Shotgun Advanced EMP Blaster Plasma Cutter Peak State ------------ > --- POWER ------------ Cooled Ion Engine > --- PROPULSION ------- Light Treads Light Treads Wheel Armored Wheel > --- UTILITY ---------- Large Storage Unit Experimental Sensor Array Improved Signal Interpreter Improved Terrain Scanner Advanced Terrain Scan Processor Hacking Suite > --- WEAPON ----------- Beamcaster Improved Assault Rifle > --- INVENTORY -------- Cooled Ion Engine Improved Medium Armor Plating Reactive Plating Reactive Plating Hardlight Generator System Shield Improved EM Shotgun Improved EM Shotgun High-powered Shotgun Mini Assault Cannon Grenade Launcher Plasma Cutter Power Maul [Rating: 43] Favorites ----------- Power Cooled Ion Engine Engine Cooled Ion Engine Propulsion Armored Wheel Treads Light Treads Wheel Armored Wheel Utility Large Storage Unit Device Improved Heat Sink Storage Large Storage Unit Processor Transport Network Coupler Hackware Hacking Suite Protection Reactive Plating Weapon Improved Assault Rifle Energy Gun Beam Rifle Ballistic Gun Improved Assault Rifle Launcher Grenade Launcher Impact Weapon Power Maul Slashing Weapon Katana Build | -11 -10 -10 -9 -9 -8 -7 ------- Run | Yrd Mat Min Mat Min Mat Fac Slots Evolved 6 | . . . 2 . 2 2 Power . | . . . . . . . Propulsion 2 | . . . . . . 2 Utility 4 | . . . 2 . 2 . Weapon . | . . . . . . . Parts Attached 59 | 6 11 2 17 2 6 15 Power 4 | 1 1 . 1 . . 1 Engine 4 | 1 1 . 1 . . 1 Core . | . . . . . . . Reactor . | . . . . . . . Propulsion 13 | 2 4 1 4 . . 2 Treads 3 | . 2 1 . . . . Leg . | . . . . . . . Wheel 10 | 2 2 . 4 . . 2 Hover . | . . . . . . . Flight . | . . . . . . . Utility 23 | 1 2 . 7 2 4 7 Device 8 | . 1 . 3 . 1 3 Storage 2 | 1 1 . . . . . Processor 5 | . . . 2 . 1 2 Hackware 1 | . . . . . 1 . Protection 7 | . . . 2 2 1 2 Artifact . | . . . . . . . Weapon 19 | 2 4 1 5 . 2 5 Energy Gun 6 | . 2 1 . . 1 2 Energy Cannon . | . . . . . . . Ballistic Gun 8 | 2 . . 5 . . 1 Ballistic Cannon . | . . . . . . . Launcher 3 | . 2 . . . . 1 Special Weapon . | . . . . . . . Impact Weapon 1 | . . . . . . 1 Slashing Weapon 1 | . . . . . 1 . Piercing Weapon . | . . . . . . . Special Melee Weapon . | . . . . . . . Unidentified Prototypes 4 | . . . 2 . 1 1 Parts Lost 17 | . . . 3 . 2 12 Power 1 | . . . . . . 1 Propulsion 5 | . . . . . . 5 Utility 7 | . . . 2 . 2 3 Weapon 4 | . . . 1 . . 3 Highest Loss Streak 8 | . . . 2 . 2 8 To Critical Strikes . | . . . . . . . Average Backups 13 | 3 11 15 14 15 14 11 Power 1 | . 1 1 1 2 1 1 Propulsion 2 | 2 4 3 3 3 2 . Utility 4 | . 3 6 5 4 4 4 Weapon 4 | . 2 4 4 5 5 5 Tool/Special . | . . . . . . . Unused Backups 22 | . 2 2 1 . 5 12 Power 2 | . . . . . 1 1 Propulsion 2 | . 2 . . . . . Utility 7 | . . 2 . . . 5 Weapon 10 | . . . 1 . 4 5 Tool/Special 1 | . . . . . . 1 Average Slot Usage (%) 95 | . 91 100 99 100 99 87 Engine 10 | . 14 14 10 11 9 5 Treads 3 | . . . 1 3 . 10 Wheel 19 | . 27 27 20 18 18 10 Device 10 | . 6 14 11 11 8 10 Storage 10 | . 14 14 11 11 9 7 Processor 10 | . . . 19 11 16 14 Hackware 2 | . . . . . 8 7 Protection 4 | . . . 1 11 10 3 Energy Gun 6 | . 12 26 1 . . 3 Ballistic Gun 13 | . 13 . 19 21 15 10 Peak Build Rating 43 | 6 12 14 24 23 31 43 Average Rating 22 | 3 9 13 21 21 29 36 On Entrance 15 | . 6 12 14 21 22 31 Naked Turns . | . . . . . . . Heaviest Build 53 | 13 32 32 39 43 53 51 Greatest Support 40 | 32 40 32 40 40 24 40 Greatest Overweight (x) 11 | . . 1 1 1 2 11 Average Overweight (x) . | . . . . 1 1 1 Largest Inventory Capacity 15 | 8 15 15 15 15 15 15 Average Capacity 14 | 6 14 15 15 15 15 15 Most Carried 15 | 5 15 15 15 15 15 15 Average Carried 13 | 3 12 14 14 14 14 11 Final Capacity 15 | 8 15 15 15 15 15 15 Final Carried 15 | 2 15 15 15 15 14 10 Class Distribution -------------------- 68% | Mutant 27% | Skirmisher Dominant Class ---------------- Mutant | -10/Materials Mutant | -10/Mines Mutant | -9/Materials Mutant | -9/Mines Skirmisher | -8/Materials Skirmisher | -7/Factory Resources | -11 -10 -10 -9 -9 -8 -7 ----------- Run | Yrd Mat Min Mat Min Mat Fac Matter Collected 2422 | 223 152 261 607 542 311 326 Remotely . | . . . . . . . Salvage Created 2931 | . 320 145 789 732 422 523 Parts 202 | . 21 10 57 47 36 31 Haulers Intercepted 6 | . 2 . 3 . 1 . Recyclers Shooed 6 | . 1 . 1 . 3 1 Parts Field Recycled . | . . . . . . . Retrieved Matter . | . . . . . . . Parts Self-Destructed . | . . . . . . . Prevented . | . . . . . . . Kills | -11 -10 -10 -9 -9 -8 -7 ------- Run | Yrd Mat Min Mat Min Mat Fac Combat Hostiles Destroyed 69 | . 7 2 16 20 11 13 Guns 33 | . 4 2 6 11 6 4 AOE 33 | . 3 . 10 9 5 6 Classes Destroyed 16 | . 7 1 4 1 . 3 Worker 6 | . 1 1 2 1 1 . Builder 7 | . . . 5 1 . 1 Tunneler 3 | . . 2 1 . . . Hauler 6 | . 2 . 3 . 1 . Recycler 5 | . . . 1 2 1 1 Mechanic 1 | . . . . . . 1 Operator 4 | . 2 . 1 . . 1 Watcher 5 | . 2 . 1 . 1 1 Swarmer 34 | . 3 . 7 9 7 8 Grunt 18 | . 3 2 6 7 . . Brawler 3 | . . . 1 1 . 1 Duelist 2 | . . . . 1 . 1 Sentry 8 | . . . 2 2 4 . Hunter 1 | . . . . . . 1 Programmer 2 | . . . . . . 2 Subdweller 1 | . 1 . . . . . Best Kill Streak 11 | . 5 2 11 6 5 4 Combat Bots Only 7 | . 3 2 7 4 5 4 Max Kills in Single Turn 6 | . 3 1 6 3 2 3 Gunslinging . | . . . . . . . Exploded 6 | . 2 . 6 2 2 3 Melee . | . . . . . . . Uniques/NPCs Destroyed . | . . . . . . . Combat | -11 -10 -10 -9 -9 -8 -7 -------- Run | Yrd Mat Min Mat Min Mat Fac Hostile Shots Fired 295 | . 31 7 30 83 47 97 Missed 71 | . 14 1 6 16 14 20 Hits 224 | . 17 6 24 67 33 77 Melee 15 | . . . 2 . . 13 Projectile 209 | . 17 6 22 67 33 64 AOE 1 | . . . 1 . . . Critical Strikes 7 | . 1 . . 2 . 4 Damage Taken 3152 | . 248 86 358 569 403 1488 Core 477 | . 68 27 34 74 71 203 Absorbed by Shields 318 | . . . 43 209 38 28 Ignored by Resistances 159 | . . . . 41 51 67 Core Remaining (%) 80 | 100 . 62 . 73 87 . Volleys Fired 207 | . 43 11 43 58 32 20 Largest 2 | . 2 2 2 2 2 2 Hottest 112 | . 112 112 60 53 46 98 Shots Fired 374 | . 85 17 85 89 62 36 Gun 340 | . 76 17 74 82 60 31 Cannon . | . . . . . . . Launcher 34 | . 9 . 11 7 2 5 Special . | . . . . . . . Kinetic 275 | . 38 . 74 82 60 21 Thermal 58 | . 38 17 . . . 3 Explosive 34 | . 9 . 11 7 2 5 Electromagnetic 7 | . . . . . . 7 Robot Hit Streak 21 | . 10 4 15 21 8 13 Robot Miss Streak 4 | . 4 2 4 3 3 2 Penetration Max . | . . . . . . . Secondary Targets 9 | . 1 1 2 2 3 . Max Gunslinging Chain 1 | . 1 1 1 1 1 . Shots Hit Robots 264 | . 55 11 58 57 42 41 Core Hits 160 | . 23 7 46 39 18 27 Critical Kills . | . . . . . . . Critical Parts Destroyed 5 | . . . 1 . 1 3 Critical Strikes 9 | . 1 2 1 . 1 4 Burn 4 | . 1 2 . . . 1 Destroy 2 | . . . 1 . 1 . Smash 3 | . . . . . . 3 Melee Attacks 32 | . . . . . 5 27 Impact 27 | . . . . . . 27 Slashing 5 | . . . . . 5 . Piercing . | . . . . . . . Sneak Attacks 1 | . . . . . . 1 Combat Hostiles . | . . . . . . . Follow-up Attacks . | . . . . . . . Damage Inflicted 7006 | . 982 161 1779 1504 1017 1563 Guns 3604 | . 674 161 881 865 607 416 Cannons . | . . . . . . . Explosions 2629 | . 308 . 898 639 377 407 Melee 773 | . . . . . 33 740 Ramming . | . . . . . . . Kinetic 2871 | . 268 . 881 865 607 250 Thermal 631 | . 406 161 . . . 64 Explosive 2629 | . 308 . 898 639 377 407 Electromagnetic 102 | . . . . . . 102 Impact 740 | . . . . . . 740 Slashing 33 | . . . . . 33 . Piercing . | . . . . . . . Highest Corruption 12 | . . . 6 6 . 12 Average Corruption 6 | . . . 5 6 . 6 Corruption Purged . | . . . . . . . Corruption Blocked . | . . . . . . . Effects 47 | . . . 3 23 . 21 Message Errors 5 | . . . . 5 . . Matter Fused 10 | . . . . 5 . 5 Heat Flow Errors 8 | . . . 1 4 . 3 Energy Discharges 11 | . . . 1 4 . 6 Parts Rejected 1 | . . . . 1 . . Data Loss (minor) 7 | . . . . 1 . 6 Data Loss (major) 2 | . . . 1 1 . . Misfires 1 | . . . . . . 1 Alerts 1 | . . . . 1 . . Weapon Failures 1 | . . . . 1 . . Overload Shots . | . . . . . . . Overflow Damage 308 | . 41 . 20 3 43 201 Projectiles . | . . . . . . . Explosions 107 | . 41 . 20 3 43 . Melee 201 | . . . . . . 201 Knockbacks 2 | . . . . . . 2 Impact 2 | . . . . . . 2 Kinetic . | . . . . . . . Secondary . | . . . . . . . Self-Inflicted Damage 169 | . 24 . 24 17 104 . Shots 5 | . 1 . 1 2 1 . Rammed . | . . . . . . . Targets Rammed . | . . . . . . . Kicked . | . . . . . . . Crushed . | . . . . . . . Highest Temperature 253 | . 66 93 232 207 4 253 Average Temperature 46 | . 16 43 103 60 1 82 Received Heat Transfer 658 | . 129 48 104 221 93 63 Siege Activations . | . . . . . . . Martial Activations . | . . . . . . . Shielding Activations . | . . . . . . . Robots Disrupted . | . . . . . . . Combat Hostiles . | . . . . . . . Robots Corrupted 3 | . . . . . . 3 Combat Hostiles 3 | . . . . . . 3 Parts Fried 4 | . . . . . . 4 Impact Corruptions 9 | . . . . . . 9 Robots Melted . | . . . . . . . Combat Hostiles . | . . . . . . . Parts Melted 2 | . 2 . . . . . Heat Transferred 1850 | . 1110 555 . . . 185 Parts Sabotaged . | . . . . . . . Parts Stolen . | . . . . . . . Parts Stripped . | . . . . . . . Power Chain Reactions . | . . . . . . . Alert | -11 -10 -10 -9 -9 -8 -7 ------- Run | Yrd Mat Min Mat Min Mat Fac Maximum Alert Level 1 | . . . 1 1 1 . Low Security (%) 71 | 100 100 100 63 8 33 100 Level 1 28 | . . . 36 91 66 . Level 2 . | . . . . . . . Level 3 . | . . . . . . . Level 4 . | . . . . . . . Level 5 . | . . . . . . . High Security . | . . . . . . . Max Security . | . . . . . . . Peak Influence 375 | . 114 40 242 375 286 179 Initial 121 | . . . . 82 121 93 Average 111 | . 24 2 140 299 206 50 Influence Increases 2480 | . 246 65 724 613 398 434 Destroy 0b10 Robot/C 1500 | . 120 40 420 440 220 260 Destroy 0b10 Robot/NC 195 | . 35 15 85 20 20 20 Destroy Leader 324 | . 38 10 90 70 64 52 Allied During Kill 49 | . . . 42 7 . . Successful Hack 34 | . . . 11 . 9 14 Disable Machine 120 | . 30 . 15 30 30 15 Destroy Structure 198 | . 23 . 46 46 40 43 Lose Combat Pursuer 60 | . . . 15 . 15 30 Influence Decreases 2433 | . 246 65 512 512 506 592 Entered New Map 434 | . . . . 130 192 112 Time Decay 1693 | . 246 65 321 362 294 405 Lost Part 125 | . . . 30 . 20 75 Lost Ally 40 | . . . 20 20 . . Purge Threat 141 | . . . 141 . . . Squads Dispatched 11 | . 2 1 2 1 . 5 Investigation 3 | . . 1 . . . 2 Extermination 2 | . . . . . . 2 Reinforcement 6 | . 2 . 2 1 . 1 Assault . | . . . . . . . Garrison . | . . . . . . . Intercept . | . . . . . . . Searches Triggered . | . . . . . . . Construction Impeded 2 | . . . . 1 . 1 Haulers Reinforced . | . . . . . . . Active Scanning Responses . | . . . . . . . Cargo Convoy Interrupts . | . . . . . . . Stealth | -11 -10 -10 -9 -9 -8 -7 --------- Run | Yrd Mat Min Mat Min Mat Fac Distress Signals 7 | . 1 . 4 1 . 1 Communications Jammed . | . . . . . . . Distress Signals . | . . . . . . . Times Spotted 103 | . 15 2 33 22 13 18 Peak Tracking Total 7 | . 5 2 6 4 7 4 Tactical Retreats 4 | . . . 1 . 1 2 Traps | -11 -10 -10 -9 -9 -8 -7 ------- Run | Yrd Mat Min Mat Min Mat Fac Traps Triggered 4 | . . . . . . 4 Indirectly . | . . . . . . . Trap Hack Attempts . | . . . . . . . Triggered . | . . . . . . . Disarmed . | . . . . . . . Reprogrammed . | . . . . . . . Reused . | . . . . . . . Traps Extracted . | . . . . . . . Installed . | . . . . . . . Triggered . | . . . . . . . Machines | -11 -10 -10 -9 -9 -8 -7 ---------- Run | Yrd Mat Min Mat Min Mat Fac Machines Disabled 9 | . 2 . 2 2 2 1 Max in Single Turn 1 | . 1 . 1 1 1 1 Machines Repaired . | . . . . . . . Machines Dismantled . | . . . . . . . Machines Sabotaged . | . . . . . . . Overloaded Fab Kills . | . . . . . . . Hacking | -11 -10 -10 -9 -9 -8 -7 --------- Run | Yrd Mat Min Mat Min Mat Fac Machines Accessed 16 | . 2 1 5 . 5 3 Terminals 12 | . 2 . 5 . 4 1 Fabricators . | . . . . . . . Repair Stations . | . . . . . . . Recycling Units 1 | . . . . . . 1 Scanalyzers 2 | . . . . . 1 1 Garrison Access . | . . . . . . . Total Hacks 37 | . 4 1 10 . 13 9 Successful 21 | . 1 1 4 . 7 8 Failed 16 | . 3 . 6 . 6 1 Catastrophic 4 | . 1 . 2 . 1 . Database Lockouts . | . . . . . . . Manual 23 | . 4 . 7 . 8 4 Terminals 27 | . 4 . 10 . 11 2 Fabricators . | . . . . . . . Repair Stations . | . . . . . . . Recycling Units 2 | . . . . . . 2 Scanalyzers 7 | . . . . . 2 5 Garrison Access . | . . . . . . . Terminal Hacks 6 | . . 1 3 . 2 . Open Door 1 | . . 1 . . . . Branch Access Points 1 | . . . 1 . . . Emergency Access Points 1 | . . . . . 1 . Unreport Threat 1 | . . . 1 . . . Locate Traps 2 | . . . 1 . 1 . Fabricator Hacks . | . . . . . . . Repair Station Hacks . | . . . . . . . Recycling Unit Hacks . | . . . . . . . Scanalyzer 7 | . . . . . 2 5 Insert Component 5 | . . . . . 2 3 Analyze 2 | . . . . . . 2 Garrison Access Hacks . | . . . . . . . Unauthorized Hacks 8 | . 1 . 1 . 3 3 Terminals 6 | . 1 . 1 . 3 1 Assimilate 1 | . . . . . . 1 Botnet 1 | . . . . . 1 . Operators 4 | . 1 . 1 . 2 . Fabricators . | . . . . . . . Repair Stations . | . . . . . . . Recycling Units 2 | . . . . . . 2 Reject 1 | . . . . . . 1 Mask 1 | . . . . . . 1 Scanalyzers . | . . . . . . . Garrison Access . | . . . . . . . Data Cores Recovered 1 | . . . 1 . . . Used . | . . . . . . . Hacking Detections 12 | . 2 . 4 . 4 2 Full Trace Events . | . . . . . . . Feedback Events . | . . . . . . . Feedback Blocked . | . . . . . . . Robot Schematics Acquired . | . . . . . . . Robots Built . | . . . . . . . Authchips . | . . . . . . . Time . | . . . . . . . Total Robot Build Rating . | . . . . . . . Part Schematics Acquired 2 | . . . . . . 2 Parts Built . | . . . . . . . Authchips . | . . . . . . . Time . | . . . . . . . Total Part Build Rating . | . . . . . . . Parts Repaired . | . . . . . . . Time . | . . . . . . . Parts Recycled . | . . . . . . . Recycled Matter . | . . . . . . . Retrieved Matter . | . . . . . . . Retrieved Components . | . . . . . . . Parts Scanalyzed 2 | . . . . . . 2 Part Schematics Acquired 2 | . . . . . . 2 Parts Damaged 1 | . . . . . . 1 Bothacking | -11 -10 -10 -9 -9 -8 -7 ------------ Run | Yrd Mat Min Mat Min Mat Fac Used RIF Installer . | . . . . . . . Robots Hacked . | . . . . . . . Non-combat . | . . . . . . . Combat . | . . . . . . . Robot Hacks Applied . | . . . . . . . Relay Couplers Released . | . . . . . . . Fabnet Peak Effective % . | . . . . . . . Robots Rewired . | . . . . . . . Allies Hacked . | . . . . . . . Hacks Repelled . | . . . . . . . Allies | -11 -10 -10 -9 -9 -8 -7 -------- Run | Yrd Mat Min Mat Min Mat Fac Total Allies 5 | . . 3 . 1 . 1 Largest Group 3 | . . 3 3 1 . 1 Highest-Rated Group 40 | . . 40 40 31 . 26 Highest-Rated Ally 31 | . . 16 16 31 . 26 Total Orders 6 | . . . 6 . . . GUARD 3 | . . . 3 . . . AID 3 | . . . 3 . . . Ally Attacks 65 | . . . 56 9 . . Total Damage 682 | . . . 618 64 . . Kills 10 | . . . 8 2 . . Allies Corrupted . | . . . . . . . Allies Melted . | . . . . . . . Intel | -11 -10 -10 -9 -9 -8 -7 ------- Run | Yrd Mat Min Mat Min Mat Fac Active Infowar (turns) 3392 | . . . 818 839 658 1077 Sensors 1567 | . . . . . 497 1070 Terrain 656 | . . . . . . 656 T.N.C. 2681 | . . . 792 839 658 392 Machine Analysis 722 | . . . 722 . . . Robot Analysis Total . | . . . . . . . Derelict Logs Recovered 4 | . . 2 . 2 . . Drone Launches . | . . . . . . . Drone Recoveries . | . . . . . . . Exploration | -11 -10 -10 -9 -9 -8 -7 ------------- Run | Yrd Mat Min Mat Min Mat Fac Turns Passed 5339 | 40 850 766 834 839 658 1352 Spaces Moved 3668 | 32 615 708 561 572 416 764 Core 14 | 8 . . . . . 6 Treads 164 | . 7 . 10 35 . 112 Legs . | . . . . . . . Wheels 3490 | 24 608 708 551 537 416 646 Hover . | . . . . . . . Flight . | . . . . . . . Fastest Speed 50 | 50 100 95 95 105 105 100 Average Speed 108 | 87 100 96 103 113 107 127 Slowest Speed 600 | 100 160 100 160 240 120 600 Overloaded Moves . | . . . . . . . Propulsion Burnouts . | . . . . . . . Robots Hopped . | . . . . . . . Potential Cave-ins . | . . . . . . . Cave-ins Triggered . | . . . . . . . Exploration Rate (%) 54 | 3 93 98 52 88 30 14 Regions Visited 6 Branch Regions 2 Pre-discovered Areas 2 | . . 1 . 1 . . Known Exits Taken 2 | . . . 1 . 1 . Unknown Exits Taken 4 | 1 1 1 . 1 . . Scrap Searched 2 | . . 1 . 1 . . Spaces Dug 14 | . 8 . . . 2 4 Terrain Destroyed 212 | . 21 . 53 53 39 46 Melee 6 | . . . . . 2 4 Projectile . | . . . . . . . AOE 206 | . 21 . 53 53 37 42 Terrain Rammed . | . . . . . . . Walls Destroyed . | . . . . . . . Machines Disabled . | . . . . . . . Actions | -11 -10 -10 -9 -9 -8 -7 --------- Run | Yrd Mat Min Mat Min Mat Fac Total 4571 | 42 759 772 727 666 558 1047 Wait 416 | . 64 41 68 14 76 153 Move 3662 | 31 614 707 560 571 415 764 Hop . | . . . . . . . Pick Up 74 | 5 17 4 13 2 9 24 Fast Attach 9 | 3 2 . 2 1 1 . Attach 22 | 3 1 . 4 . 3 11 Detach . | . . . . . . . Swap 101 | . 13 5 24 17 10 32 Drop 48 | . 5 4 13 3 7 16 Fire 207 | . 43 11 43 58 32 20 Melee 32 | . . . . . 5 27 Ram . | . . . . . . . Kick . | . . . . . . . Crush . | . . . . . . . Escape Stasis . | . . . . . . . Rewire . | . . . . . . . Trap . | . . . . . . . Miscellaneous . | . . . . . . . Route ------- -11/Scrapyard -10/Materials (discovered 5 exits: *Mat x2 / *Min x2 / [*Sub]) -10/Mines (discovered 3 exits: *Mat x2 / [*Exi]) -9/Materials (discovered 2 exits: *Mat / *Min) -9/Mines (discovered 2 exits: *Mat x2) -8/Materials -7/Factory (discovered 1 exit: Sto) History --------- Turn | Location | Event 10 | -11/Scrapyard | Discovered new exit (range 16) 41 | -11/Scrapyard | Entered Materials 267 | -10/Materials | Discovered new exit (range 12) 334 | -10/Materials | Build established: Mutant 370 | -10/Materials | Discovered new exit (range 16) 429 | -10/Materials | Discovered new exit (range 7) 451 | -10/Materials | Discovered new exit (range 14) 542 | -10/Materials | Discovered new exit (range 9) 741 | -10/Materials | Derelicts attacked the area 891 | -10/Materials | Entered Mines 1102 | -10/Mines | Discovered new exit (range 9) 1112 | -10/Mines | Found a damaged Exp. Sensor Array with a note attached 1115 | -10/Mines | Found Prototype Device 1176 | -10/Mines | Learned Materials trap positions 1217 | -10/Mines | Met a Derelict shopkeep closing up shop 1305 | -10/Mines | Assisted by bots powering up and referring to "LRC-V3" 1341 | -10/Mines | Discovered new exit (range 5) 1381 | -10/Mines | Deemed a non-threat by the Exiles lab entrance 1381 | -10/Mines | Discovered new exit (range 5) 1403 | -10/Mines | Learned location of Storage (-7) 1657 | -10/Mines | Entered Materials 1657 | -9/Materials | Accompanied by 3 allies 1657 | -9/Materials | Evolved 2 slots: Utility x2 1658 | -9/Materials | Loaded intel: 21 trap records 1830 | -9/Materials | Discovered new exit (range 15) 2046 | -9/Materials | Discovered new exit (range 16) 2268 | -9/Materials | Identified exit to Mines 2353 | -9/Materials | Lost 3 allies 2357 | -9/Materials | Destroyed 7 combat bots 2491 | -9/Materials | Entered Mines 2494 | -9/Mines | Received a Mining Laser from a helpful Derelict 2627 | -9/Mines | Learned Materials interactive machine intel 2887 | -9/Mines | Discovered new exit (range 13) 3204 | -9/Mines | Discovered new exit (range 4) 3330 | -9/Mines | Entered Materials 3330 | -8/Materials | Evolved 2 slots: Utility x2 3331 | -8/Materials | Loaded intel: 19 interactive machine locations 3807 | -8/Materials | Discovered new exit (range 16) 3987 | -8/Materials | Identified exit to Factory 3988 | -8/Materials | Entered Factory 3988 | -7/Factory | Evolved 2 slots: Propulsion x2 3989 | -7/Factory | Identified exit to Storage 4027 | -7/Factory | Identified Exp. Sensor Array 4088 | -7/Factory | Build established: Skirmisher 4842 | -7/Factory | Lost 8 parts (1p3n3u1w) 5270 | -7/Factory | System corruption reached 10% 5340 | -7/Factory | Self-destructed Last Messages --------------- Wheel. 05299_ U-05 Engineer builds a Wall. 05304_ U-05 Engineer lays Concrete. 05306_ The unstable cave ceiling collapses. 05306_ U-05 Engineer builds a Wall. 05310_ U-05 Engineer lays Concrete. 05311_ U-05 Engineer builds a Wall. 05318_ L-41 Fighter heat damages Carbon-fiber Leg. 05318_ L-41 Fighter overheating. 05318_ Destroyed Carbon-fiber Leg. 05318_ Destroyed Imp. Melee Analysis Suite. 05318_ L-41 Fighter system corrupted by crushing effect. 05319_ L-41 Fighter system terminally corrupted. 05322_ System corrupted: Matter fused (-7). 05323_ Acquired 19 matter. 05337_ Sneak attack on M-28 Smith. 05337_ M-28 Smith destroyed. 05338_ Acquired 48 matter. Map ----- +----------------------------------------------------+ | | | | | ############################?##??####??##?##?????? | | # ####?#?#?###?###???##??##?##?#??? | | # "" """" """" #####?##############????#???????? | | # ""S """" """" #####?# """" ]] ####?###??#?????? | | # ""]] """" """" ###?### ""R" ] ##?#?#???##??#??? | | # """" """" ####### "" " ] ##?#??#?##??????? | | # """" """" ### + ###?#???##??????? | | # """" """" ### # """ """ ####?#?#??#??#??? | | # + + """ """ ######?#????????? | | # ### # """ """ ######?#????????? | | #########+########## # ######??##?#????? | | # #### #################?????????? | | # #?## # #?#####?#?##????? | | """ ]# #### # #?######????????? | | """ # #### # #########???????? | | """ # #### # ######?##???????? | | """ # #### # ##########??????? | | + # ######?##???????? | | """ # #########?#?????? | | """ # ##########??????? | | """ # """ """"" ##################???????? | | """ # """ """"" ! # % """" ##?###?????? | | # """ """ u#u ""S"" ####?##????? | | """ # %/@ "" "" #???#??????? | | """ # =#= #??##??????? | | """ !# h # ! ####?#?????? | | """ # ############ ! ]#####??????? | | # ####?##########################?????? | | #+#### #####?###############?###???#???????? | | ? ? ?? ?#???????? | | ? ? ? ???#????????? | | """ ? ? ?????????? | | "Y? ?"""?""??"""?""" ?????????? | | % ? ? ?"?" "?" "?? ""? ??????????? | | ? ? """ ?"" """ "?"???????????? | | ?? ? ?? ? ???????????? | | ###+######+##????? "?"?""? """?""" ??????????????? | | ##? ?? ?????????????"?? ??"?"""???????????????? | | ## ? ???????????????"" ""????????????????????? | | ?#??? ? ??????????????????????????????????????? | | ?? ??" """???????????????????????????????????????? | | ????"? ""????????????????????????????????????????? | | ?????? ""????????????????????????????????????????? | | ?#???????????????????????????????????????????????? | | ???????"?????????????????????????????????????????? | | ????????????????????????????????????????????????? | | ?#???????????????????????????????????????????????? | | ?????????????????????????????????????????????????? | +----------------------------------------------------+ Best States ------------- Heat Dissipation 50 Energy Generation 23 Energy Capacity 280 Matter Stores 300 Matter Capacity 300 Sight Range 16 Robot Scan Range 20 Terrain Scan Range 16 Terrain Scan Density 210 Armor Coverage 375 Resistance: KI 20 Evasion (%) 50 Recoil Reduction 2 Offensive Hacking 10 Item Schematics ----------------- Corruption Screen | -7/Factory | Scanalyzed System Shield | -7/Factory | Scanalyzed Robot Schematics ------------------ None Fabricated ------------ Nothing Repaired ---------- Nothing Alien Tech Used ----------------- None Achievements -------------- None Challenges ------------ None Game ------ Seed TripodQuantumPendant Manual? 0 Play Time 00:46:16 Cumulative 115.7 hours Start 2025.10.13 @ 15:20:11 End 2025.10.13 @ 16:03:06 Sessions 1 Manual Loads 0 Difficulty Rogue Special Mode None Game No. 180 Rogue 179 Adventurer 1 Explorer 0 Win Type - Total 1 Types 0/0/0/1/0/0/0/0/0/0 Lore% 61 Gallery% 54 Achievement% 49 Wizard Run 0 Options --------- Layout 1 ASCII 0 Keyboard 0 Movement Mouse Keybinds 0 Fullscreen 2 Font 24/Smallcaps Map View 50x35 Zoom Use 0% Tactical HUD 1 Map Filters NONE Filters NONE Steam 1 RUN: 3264a793-4a54-455e-a412-565bb23f5b11